bitfinex-derivatives/quotes_SOLF0:USTF0_20250411
["timestamp","ask_amount","ask_price","bid_price","bid_amount"]
[1744329603062,0.05774191,112.79,112.71,4.0861]
[1744329603359,8.8718,112.8,112.71,4.0861]
[1744329603561,0.05988854,112.77,112.71,4.0861]
[1744329605862,0.05988854,112.77,112.72,736.76]
[1744329607759,8.93348854,112.77,112.72,736.76]
[1744329607965,0.05988854,112.77,112.72,736.76]
[1744329608364,8.93378854,112.77,112.72,736.76]
[1744329608661,0.05988854,112.77,112.65,702.54]
[1744329608860,8.8756,112.75,112.66,34.3]
[1744329609066,0.06252085,112.72,112.66,36.4715]
[1744329609265,0.06252085,112.72,112.66,38.3949]
[1744329610967,15.4784,112.79,112.66,38.3949]
[1744329611466,8.8729,112.78,112.66,38.3949]
[1744329611961,0.06791295,112.73,112.66,38.3949]
[1744329612167,15.4782,112.79,112.66,38.3949]
[1744329612363,0.05704872,112.71,112.68,0.06252085]
[1744329612667,6.6058,112.79,112.69,34.3]
[1744329612867,4.3057,112.79,112.7,1.63015052]
[1744329613063,36.4847,112.84,112.7,1.63015052]
[1744329613266,21.1647309,112.82,112.71,2.1755]
[1744329613558,21.1647309,112.82,112.72,34.3]
[1744329613769,0.06538243,112.78,112.75,0.06829714]
[1744329613970,0.06538243,112.78,112.76,34.3]
[1744329614170,12.2946309,112.82,112.77,34.3]
[1744329614369,0.05901024,112.78,112.77,34.3]
[1744329614572,12.2946309,112.82,112.78,0.05925575]
[1744329614766,0.06216158,112.79,112.78,0.05925575]
[1744329618567,2.1847,112.84,112.78,0.05925575]
[1744329618761,4.4233,112.87,112.78,0.05925575]
[1744329618975,8.8675,112.85,112.77,34.3]
[1744329619374,6.7433,112.87,112.77,34.3]
[1744329619566,0.05970151,112.83,112.81,0.05637913]
[1744329620876,0.05970151,112.83,112.77,34.3]
[1744329621075,34.28,112.82,112.77,34.3]
[1744329622073,0.05907308,112.81,112.78,0.06138211]
[1744329626375,0.05907308,112.81,112.78,34.34138211]
[1744329629179,0.05907308,112.81,112.78,34.34138211]
[1744329637389,0.05907308,112.81,112.78,0.06138211]
[1744329637985,8.8716,112.8,112.78,0.06138211]
[1744329638498,8.92987308,112.81,112.78,0.06138211]
[1744329638998,0.05907308,112.81,112.78,0.06138211]
[1744329643601,8.92957308,112.81,112.78,0.06138211]
[1744329645196,0.05907308,112.81,112.78,0.06138211]
[1744329646104,60.67,112.8,112.71,34.08]
[1744329646494,8.8751,112.76,112.71,34.08]
[1744329646699,34.08,112.77,112.71,34.08]
[1744329646906,4.4366,112.76,112.69,73.1562028]
[1744329647202,8.8761,112.74,112.73,0.06396991]
[1744329647403,0.06525131,112.75,112.73,0.06396991]
[1744329647601,8.8759,112.74,112.73,0.06396991]
[1744329647902,0.06525131,112.75,112.73,0.06396991]
[1744329648806,8.94075131,112.75,112.73,0.06396991]
[1744329650606,0.06525131,112.75,112.73,0.06396991]
[1744329652202,0.06525131,112.75,112.67,2.1195]
[1744329652203,0.06525131,112.75,112.68,34.08]
[1744329652399,34.08,112.74,112.65,2.1667]
[1744329652595,8.88,112.69,112.63,34.08]
[1744329653007,34.08,112.72,112.63,34.08]
[1744329653208,4.2925,112.71,112.62,36.9095028]
[1744329653410,0.06768039,112.69,112.62,36.9095028]
[1744329653609,34.08,112.68,112.62,36.9095028]
[1744329653808,42.9612,112.68,112.62,36.9095028]
[1744329654001,0.06536327,112.66,112.62,36.9095028]
[1744329654201,0.06536327,112.66,112.6,738.8539]
[1744329656211,8.94766327,112.66,112.6,738.8539]
[1744329656599,0.06536327,112.66,112.6,738.8539]
[1744329657712,8.94796327,112.66,112.6,736.68]
[1744329657910,0.06536327,112.66,112.6,736.68]
[1744329661413,0.06536327,112.66,112.6,34.08]
[1744329661812,4.61006327,112.66,112.6,34.08]
[1744329662715,8.8838,112.65,112.6,34.08]
[1744329663215,0.05834768,112.64,112.6,34.08]
[1744329663415,0.05834768,112.64,112.57,35.9245]
[1744329663604,34.12,112.64,112.55,4.4537]
[1744329663808,0.06287774,112.62,112.54,737.16]
[1744329664006,8.8873,112.6,112.54,737.16]
[1744329664411,0.06407174,112.58,112.54,737.16]
[1744329665809,0.06407174,112.58,112.54,34.12]
[1744329670506,2.2842,112.63,112.55,6.3046]
[1744329670912,4.5885,112.66,112.55,709.7646]
[1744329671117,2.3397,112.66,112.55,709.7646]
[1744329671318,11.2223,112.66,112.55,709.7646]
[1744329671612,0.06741194,112.62,112.59,0.05754156]
[1744329671817,2.146,112.67,112.6,34.88]
[1744329672017,2.1206,112.7,112.61,34.88]
[1744329672214,2.1206,112.7,112.62,34.88]
[1744329672411,900.0,112.69,112.53,1.54587655]
[1744329672718,961.47,112.68,112.47,34.88]
[1744329672918,1250.6872,112.67,112.48,740.01279619]
[1744329673114,0.06702085,112.62,112.6,0.05633852]
[1744329673420,0.06702085,112.62,112.49,1.63279619]
[1744329673421,0.06643501,112.59,112.56,34.88]
[1744329673719,34.88,112.65,112.6,0.05806643]
[1744329674017,2.1872,112.67,112.59,34.88]
[1744329674819,0.05963468,112.64,112.62,0.05723232]
[1744329675722,0.05963468,112.64,112.62,34.93723232]
[1744329676719,0.05963468,112.64,112.62,0.05723232]
[1744329677425,8.94343468,112.64,112.62,0.05723232]
[1744329678126,8.8846,112.63,112.62,0.05723232]
[1744329680026,8.94373468,112.64,112.62,0.05723232]
[1744329680221,0.05963468,112.64,112.62,0.05723232]
[1744329680423,34.88,112.63,112.56,34.88]
[1744329680627,34.88,112.63,112.55,703.5]
[1744329680628,34.88,112.63,112.53,34.88]
[1744329681121,8.887,112.6,112.53,34.88]
[1744329681320,34.88,112.63,112.53,34.88]
[1744329681620,0.06126791,112.59,112.57,0.05850179]
[1744329685623,8.8886,112.58,112.57,0.05850179]
[1744329685826,0.06126791,112.59,112.5,39.2418]
[1744329686029,4.5583,112.59,112.5,39.2418]
[1744329686933,4.5583,112.59,112.53,0.05821733]
[1744329687131,0.06047531,112.56,112.53,0.05821733]
[1744329689530,0.06047531,112.56,112.53,34.93821733]
[1744329690826,8.8867,112.61,112.53,34.93821733]
[1744329691029,8.8867,112.61,112.53,34.88]
[1744329691227,34.9,112.63,112.53,34.88]
[1744329691431,8.8862,112.62,112.53,34.88]
[1744329691634,6.749,112.65,112.54,1.63255127]
[1744329691932,0.06031827,112.61,112.58,0.06134555]
[1744329692128,0.06031827,112.61,112.58,34.9]
[1744329692332,0.06031827,112.61,112.58,34.95648703]
[1744329695742,8.94671827,112.61,112.58,34.95648703]
[1744329696731,0.06031827,112.61,112.58,34.95648703]
[1744329699631,8.94651827,112.61,112.58,34.95648703]
[1744329700639,8.94651827,112.61,112.58,0.05648703]
[1744329700840,0.06031827,112.61,112.58,0.05648703]
[1744329701534,8.94651827,112.61,112.58,0.05648703]
[1744329702238,8.887,112.6,112.58,0.05648703]
[1744329703342,8.8878,112.59,112.58,0.05648703]
[1744329703841,8.8874,112.6,112.58,0.05648703]
[1744329705543,8.8878,112.59,112.58,0.05648703]
[1744329705845,0.06031827,112.61,112.58,0.05648703]
[1744329706840,8.8878,112.59,112.58,0.05648703]
[1744329708348,8.8878,112.59,112.53,35.74]
[1744329709448,0.05926215,112.57,112.55,0.06576506]
[1744329714554,0.05926215,112.57,112.56,35.74]
[1744329719648,0.05926215,112.57,112.55,0.06576506]
[1744329732969,0.05926215,112.57,112.56,35.74]
[1744329733373,6.6666,112.64,112.56,35.74]
[1744329734066,8.885,112.63,112.56,35.74]
[1744329734373,6.6666,112.64,112.56,35.74]
[1744329734572,0.05768757,112.61,112.58,0.06613458]
[1744329739067,0.05768757,112.61,112.59,35.72]
[1744329740975,0.05768757,112.61,112.58,0.06613458]
[1744329745583,8.94418757,112.61,112.58,0.06613458]
[1744329746186,8.887,112.6,112.58,0.06613458]
[1744329746579,0.05768757,112.61,112.58,0.06613458]
[1744329750690,0.05768757,112.61,112.59,35.72]
[1744329751086,40.2816,112.67,112.59,35.72]
[1744329751384,40.2816,112.67,112.59,40.1605]
[1744329752087,49.1631,112.67,112.59,40.1605]
[1744329752388,0.06277792,112.64,112.62,0.05606515]
[1744329752685,0.06277792,112.64,112.62,35.77606515]
[1744329754282,11.2201,112.69,112.62,35.77606515]
[1744329754486,11.2201,112.69,112.62,35.72]
[1744329755387,0.0561602,112.67,112.64,0.06304331]
[1744329761694,8.9378602,112.67,112.64,0.06304331]
[1744329764503,0.0561602,112.67,112.64,0.06304331]
[1744329764793,4.5024,112.66,112.59,35.92]
[1744329764998,8.8843,112.64,112.59,35.92]
[1744329765402,2.3462,112.65,112.59,35.92]
[1744329765595,8.885,112.63,112.59,35.92]
[1744329765793,2.3462,112.65,112.59,35.92]
[1744329765996,0.05896294,112.62,112.6,0.06343034]
[1744329770505,10.32248423,112.65,112.6,0.06343034]
[1744329771705,0.06482238,112.64,112.6,0.06343034]
[1744329772902,8.8847,112.63,112.6,0.06343034]
[1744329775809,8.8854,112.62,112.6,0.06343034]
[1744329776101,36.00482238,112.64,112.6,0.06343034]
[1744329776307,36.00482238,112.64,112.56,35.94]
[1744329776503,35.94,112.64,112.56,35.94]
[1744329776704,35.94,112.64,112.54,4.3951]
[1744329776903,8.8862,112.61,112.54,4.3951]
[1744329777507,0.0590202,112.59,112.56,0.06348983]
[1744329792006,0.0590202,112.59,112.56,6.80178983]
[1744329795917,0.0590202,112.59,112.56,0.06348983]
[1744329798218,0.0590202,112.59,112.57,35.34]
[1744329805620,2.1554,112.64,112.57,35.34]
[1744329805817,2.1554,112.64,112.57,39.7211]
[1744329806621,0.06041023,112.62,112.59,0.05704596]
[1744329807012,0.06041023,112.62,112.6,35.32]
[1744329807813,0.06041023,112.62,112.61,8.8862]
[1744329808210,1.023e-05,112.62,112.61,8.8862]
[1744329809220,1.023e-05,112.62,112.61,44.2062]
[1744329814722,12.2946309,112.76,112.61,35.32]
[1744329814918,6.6689,112.73,112.62,711.6647343]
[1744329815118,12.2946309,112.76,112.73,8.8763]
[1744329815319,18.9727309,112.76,112.7,35.32]
[1744329815523,18.9727309,112.76,112.71,35.32]
[1744329815825,0.061682,112.75,112.72,8.94189937]
[1744329816023,0.061682,112.75,112.72,0.06489937]
[1744329816326,0.061682,112.75,112.67,35.32]
[1744329816327,0.061682,112.75,112.71,8.8779]
[1744329816627,54.2927309,112.76,112.71,8.8779]
[1744329816628,41.9981,112.76,112.71,8.8779]
[1744329817221,8.8756,112.75,112.71,8.8779]
[1744329817417,8.94040905,112.75,112.72,0.06049684]
[1744329817924,0.06480905,112.75,112.72,0.06049684]
[1744329818429,0.06480905,112.75,112.72,8.93789684]
[1744329820327,0.06480905,112.75,112.73,8.8765]
[1744329820829,0.06480905,112.75,112.74,8.8759]
[1744329827424,4.6059,112.79,112.76,8.874]
[1744329828233,4.6059,112.79,112.77,8.8735]
[1744329828835,4.66459204,112.79,112.77,8.9296243]
[1744329829324,4.66459204,112.79,112.78,8.8728]
[1744329829932,4.66459204,112.79,112.77,0.0561243]
[1744329830534,4.66459204,112.79,112.76,44.074]
[1744329830732,4.66459204,112.79,112.76,8.874]
[1744329831036,4.66459204,112.79,112.73,35.2]
[1744329831236,0.05869204,112.79,112.73,35.2]
[1744329831635,0.05869204,112.79,112.75,0.05955696]
[1744329831837,0.05869204,112.79,112.76,35.2]
[1744329832434,0.05869204,112.79,112.78,8.8728]
[1744329833538,0.05869204,112.79,112.77,8.93421892]
[1744329834131,0.05869204,112.79,112.78,8.8728]
[1744329835532,0.05869204,112.79,112.77,0.06131892]
[1744329835833,8.8728,112.78,112.73,35.18]
[1744329836138,2.3389,112.8,112.76,8.8741]
[1744329836333,8.8725,112.79,112.76,8.8741]
[1744329836840,8.93594231,112.79,112.76,8.94063639]
[1744329837229,8.8732,112.78,112.76,0.06653639]
[1744329837435,0.06344231,112.79,112.71,35.18]
[1744329837740,2.3389,112.8,112.71,35.18]
[1744329838535,0.06528143,112.77,112.74,0.06004927]
[1744329838839,8.8748,112.76,112.74,0.06004927]
[1744329839040,4.503,112.76,112.71,35.18]
[1744329840239,4.503,112.76,112.72,0.06010382]
[1744329840240,8.8759,112.74,112.72,0.06010382]
[1744329840439,0.06080289,112.75,112.71,35.18]
[1744329840743,8.8764,112.74,112.67,35.18]
[1744329840943,4.503,112.76,112.67,35.18]
[1744329841144,35.18,112.75,112.67,35.18]
[1744329841440,8.8792,112.7,112.67,44.0611]
[1744329841833,8.8792,112.7,112.64,35.18]
[1744329841834,0.06236887,112.7,112.64,35.18]
[1744329842035,2.2695,112.71,112.63,702.6]
[1744329842231,0.05857393,112.68,112.63,737.78]
[1744329843042,8.8823,112.66,112.63,35.18]
[1744329843243,35.2,112.69,112.63,35.18]
[1744329843437,0.06131789,112.66,112.64,8.8838]
[1744329843642,0.06131789,112.66,112.58,39.5995]
[1744329843841,35.2,112.69,112.58,39.5995]
[1744329844040,0.05663152,112.63,112.62,8.8849]
[1744329844441,8.8828,112.66,112.62,8.8849]
[1744329844642,0.06442381,112.64,112.62,8.8849]
[1744329845148,0.06442381,112.64,112.61,35.2]
[1744329845848,0.06442381,112.64,112.58,35.2]
[1744329846052,35.2,112.66,112.58,35.2]
[1744329846237,0.06483674,112.62,112.58,35.2]
[1744329846441,0.06483674,112.62,112.6,8.8865]
[1744329847437,0.06483674,112.62,112.58,35.2]
[1744329847849,8.8866,112.61,112.58,44.0885]
[1744329848451,8.8866,112.61,112.58,35.2]
[1744329848748,11.0908,112.61,112.58,35.2]
[1744329850044,11.0908,112.61,112.58,44.0885]
[1744329850349,2.2042,112.61,112.58,44.0885]
[1744329850752,11.0905,112.61,112.58,8.8885]
[1744329851943,11.0905,112.61,112.57,8.889]
[1744329852348,0.06797693,112.6,112.57,8.889]
[1744329852547,8.95517693,112.6,112.56,44.1098]
[1744329852950,8.95517693,112.6,112.56,35.22]
[1744329853746,0.06797693,112.6,112.58,8.8885]
[1744329855650,8.95507693,112.6,112.57,8.8893]
[1744329855851,8.8871,112.6,112.57,8.8893]
[1744329856053,8.94311023,112.6,112.57,8.8893]
[1744329856653,0.05601023,112.6,112.57,8.8893]
[1744329857555,0.05601023,112.6,112.58,8.8881]
[1744329859751,0.05601023,112.6,112.55,35.24]
[1744329860051,0.05601023,112.6,112.56,35.24]
[1744329860247,8.8858,112.62,112.59,8.8873]
[1744329860447,46.2839,112.63,112.59,8.8873]
[1744329860652,0.05962731,112.62,112.59,8.8873]
[1744329861356,0.05962731,112.62,112.58,35.24]
[1744329861557,4.265,112.69,112.59,6.5351]
[1744329861857,4.265,112.69,112.59,710.0751]
[1744329862054,2.2756,112.72,112.59,710.0751]
[1744329862252,2.2756,112.72,112.69,8.8794]
[1744329862558,2.2756,112.72,112.67,35.24]
[1744329862745,0.06391728,112.72,112.69,0.05881494]
[1744329863150,13.1414,112.74,112.68,35.24]
[1744329863350,0.06782222,112.72,112.69,0.05732986]
[1744329864555,0.06782222,112.72,112.69,4.73312986]
[1744329865657,4.4489,112.77,112.69,4.73312986]
[1744329865953,13.3228,112.77,112.69,4.6758]
[1744329866157,4.4489,112.77,112.69,4.6758]
[1744329866755,13.3228,112.77,112.69,4.6758]
[1744329866956,0.06502975,112.74,112.72,0.0646873]
[1744329867858,35.22,112.81,112.72,0.0646873]
[1744329868055,35.22,112.82,112.72,0.0646873]
[1744329868259,35.22,112.83,112.71,35.22]
[1744329868758,8.8712,112.8,112.71,35.22]
[1744329869262,0.06518851,112.77,112.74,0.06194117]
[1744329869458,0.06518851,112.77,112.75,35.22]
[1744329869659,8.8704,112.82,112.75,35.22]
[1744329869859,0.06735186,112.77,112.75,35.28034757]
[1744329870058,35.22,112.83,112.75,35.22]
[1744329870256,0.06263402,112.77,112.75,35.28636949]
[1744329870457,8.8709,112.81,112.75,35.22]
[1744329870661,0.0574078,112.77,112.75,35.28133157]
[1744329873563,0.0574078,112.77,112.75,39.83933157]
[1744329880561,0.0574078,112.77,112.75,4.61933157]
[1744329880763,0.0574078,112.77,112.75,0.06133157]
[1744329880955,44.9374078,112.77,112.68,36.02]
[1744329881160,2.1767,112.76,112.67,42.8068]
[1744329881465,8.8756,112.75,112.67,42.8068]
[1744329882168,0.06449754,112.72,112.7,0.05749092]
[1744329882367,0.06449754,112.72,112.7,36.07749092]
[1744329885761,0.06449754,112.72,112.71,8.8777]
[1744329888371,546.54375069,112.85,112.71,8.88]
[1744329888572,6.9073,112.84,112.72,2.2524]
[1744329888766,8.8701,112.82,112.73,39.9094733]
[1744329888966,6.9073,112.84,112.79,8.8715]
[1744329889366,8.8693,112.83,112.79,8.8715]
[1744329889672,8.93610437,112.83,112.8,0.06625328]
[1744329890071,8.8704,112.81,112.8,0.06625328]
[1744329892576,8.8699,112.82,112.8,0.06625328]
[1744329892772,36.08680437,112.83,112.8,0.06625328]
[1744329893178,8.87,112.82,112.8,0.06625328]
[1744329894073,8.8704,112.81,112.8,0.06625328]
[1744329894679,36.08680437,112.83,112.77,36.02]
[1744329894978,36.02,112.83,112.77,36.02]
[1744329895976,8.93060525,112.81,112.79,0.0637287]
[1744329896476,8.8712,112.8,112.79,0.0637287]
[1744329896876,0.05980525,112.81,112.79,0.0637287]
[1744329897779,8.93040525,112.81,112.79,0.0637287]
[1744329898574,8.8712,112.8,112.79,0.0637287]
[1744329898874,36.02,112.8,112.71,738.72]
[1744329899078,607.68,112.8,112.7,8.879]
[1744329899477,607.68,112.8,112.68,36.02]
[1744329899776,8.8766,112.74,112.73,0.05994516]
[1744329899977,8.8766,112.74,112.7,8.8787]
[1744329900276,4.4687,112.74,112.65,36.02]
[1744329901074,0.06110802,112.71,112.65,36.02]
[1744329903385,0.06110802,112.71,112.67,135.026023]
[1744329903585,0.06110802,112.71,112.68,36.02]
[1744329904388,4.4664,112.77,112.68,40.4557]
[1744329904781,13.3405,112.77,112.68,40.4557]
[1744329905387,4.4664,112.77,112.69,1.63042741]
[1744329905578,0.05982024,112.74,112.71,0.05932194]
[1744329905783,0.05982024,112.74,112.72,36.02]
[1744329906186,0.05982024,112.74,112.73,8.8767]
[1744329908789,0.05982024,112.74,112.72,44.8972]
[1744329909590,0.05982024,112.74,112.73,8.8767]
[1744329912492,2.024e-05,112.74,112.73,8.8767]
[1744329923999,2.024e-05,112.74,112.71,738.86681542]
[1744329926907,2.024e-05,112.74,112.71,0.06681542]
[1744329927116,4.56152024,112.74,112.71,0.06681542]
[1744329927293,8.8787,112.71,112.66,1.54388767]
[1744329927498,2.173,112.7,112.65,36.18]
[1744329929804,0.06015938,112.67,112.64,0.05962034]
[1744329930402,8.94195938,112.67,112.64,0.05962034]
[1744329931099,0.06015938,112.67,112.64,0.05962034]
[1744329932204,8.883,112.65,112.64,0.05962034]
[1744329932404,36.18,112.66,112.59,775.585279]
[1744329932606,4.499,112.64,112.59,775.585279]
[1744329932997,4.499,112.64,112.59,73.005279]
[1744329933307,8.8849,112.63,112.59,73.005279]
[1744329933707,8.95083676,112.63,112.59,73.005279]
[1744329933904,8.95073676,112.63,112.59,73.005279]
[1744329934108,0.06593676,112.63,112.59,73.005279]
[1744329934312,0.06593676,112.63,112.59,36.18]
[1744329941613,4.5411,112.68,112.6,2.2296]
[1744329941811,4.5411,112.68,112.6,2.29600889]
[1744329942011,4.5411,112.68,112.6,2.2296]
[1744329942711,8.8816,112.67,112.6,2.2296]
[1744329943014,0.06281064,112.65,112.63,0.06121483]
[1744329947924,0.06281064,112.65,112.6,703.2]
[1744329948318,8.94631064,112.65,112.6,703.2]
[1744329949525,8.94631064,112.65,112.59,35.86]
[1744329949723,0.06281064,112.65,112.59,35.86]
[1744329951211,8.94651064,112.65,112.59,35.86]
[1744329951522,0.06281064,112.65,112.59,35.86]
[1744329951718,8.8845,112.64,112.59,35.86]
[1744329952023,35.86,112.63,112.56,35.86]
[1744329952224,4.4675,112.62,112.56,35.86]
[1744329952620,0.05951217,112.6,112.56,35.86]
[1744329953017,8.8881,112.59,112.52,35.86]
[1744329953417,35.86,112.6,112.52,35.86]
[1744329953624,0.06483648,112.57,112.52,35.86]
[1744329954420,8.95423648,112.57,112.52,35.86]
[1744329954725,6.6718,112.56,112.52,35.86]
[1744329955324,6.6718,112.56,112.49,72.4389653]
[1744329955626,703.34,112.61,112.49,72.4389653]
[1744329955823,0.065708,112.54,112.53,8.8925]
[1744329956024,35.86,112.58,112.49,72.4389653]
[1744329956326,0.0621154,112.55,112.49,72.4389653]
[1744329956526,8.9535154,112.55,112.49,72.4389653]
[1744329956715,0.0621154,112.55,112.49,72.4389653]
[1744329957036,0.0621154,112.55,112.49,35.86]
[1744329958328,0.0621154,112.55,112.54,8.8917]
[1744329960324,8.8858,112.62,112.58,8.8884]
[1744329960525,8.8858,112.62,112.56,35.88]
[1744329960724,42.454,112.64,112.57,35.88]
[1744329960926,42.454,112.64,112.58,35.88]
[1744329960927,6.574,112.64,112.58,35.88]
[1744329961226,35.88,112.69,112.59,35.88]
[1744329961428,8.8821,112.67,112.63,8.8846]
[1744329961634,0.06362511,112.65,112.63,0.06160516]
[1744329962127,48.57740733,112.71,112.64,35.88]
[1744329963125,6.8667,112.72,112.69,8.8794]
[1744329963523,0.05811573,112.72,112.67,35.88]
[1744329963718,0.05811573,112.72,112.69,0.06769398]
[1744329966330,0.05811573,112.72,112.7,8.8786]
[1744329967133,0.05811573,112.72,112.71,8.8783]
[1744329969334,0.05811573,112.72,112.71,45.0183]
[1744329969534,6.8667,112.77,112.74,8.8753]
[1744329969735,44.7531,112.78,112.71,36.14]
[1744329970036,2.2873,112.8,112.71,36.14]
[1744329970231,2.2873,112.8,112.75,8.875]
[1744329970836,8.9397457,112.79,112.76,0.05674192]
[1744329971038,0.0675457,112.79,112.76,0.05674192]
[1744329971336,8.875,112.76,112.71,36.14]
[1744329971732,8.875,112.76,112.72,8.8773]
[1744329972531,0.05798664,112.75,112.73,0.06101554]
[1744329972839,0.05798664,112.75,112.73,8.93771554]
[1744329973038,0.05798664,112.75,112.73,0.06101554]
[1744329973336,2.2873,112.8,112.74,36.14]
[1744329973537,11.159,112.8,112.76,8.8739]
[1744329973840,2.2873,112.8,112.74,36.14]
[1744329974327,0.06540066,112.78,112.76,0.0682263]
[1744329974531,0.06540066,112.78,112.77,8.8736]
[1744329976235,0.06540066,112.78,112.77,45.0136]
[1744329979234,6.6e-07,112.78,112.77,45.0136]
[1744329982343,6.6e-07,112.78,112.77,53.8736]
[1744329982651,6.6e-07,112.78,112.77,55.50280993]
[1744329982832,6.6e-07,112.78,112.77,46.64280993]
[1744329983034,6.6e-07,112.78,112.77,45.0136]
[1744329983239,6.6e-07,112.78,112.77,46.64282858]
[1744329983440,6.6e-07,112.78,112.77,45.0136]
[1744329985647,6.6e-07,112.78,112.77,46.64284519]
[1744329986349,6.6e-07,112.78,112.77,45.0136]
[1744329990854,6.6e-07,112.78,112.77,46.64281343]
[1744329992450,6.6e-07,112.78,112.77,45.0136]
[1744329992650,6.6e-07,112.78,112.77,46.64273171]
[1744329993556,6.6e-07,112.78,112.77,45.0136]
[1744329993856,6.6e-07,112.78,112.77,46.64269242]
[1744329994047,6.6e-07,112.78,112.77,55.50269242]
[1744329994254,36.1,112.93,112.88,8.8647]
[1744329994449,8.8626,112.91,112.88,8.8647]
[1744329995053,8.8626,112.91,112.87,8.8653]
[1744329995257,8.8637,112.9,112.87,8.8653]
[1744329995461,8.92946767,112.9,112.88,0.05959907]
[1744329998564,0.06576767,112.9,112.88,0.05959907]
[1744329999259,0.06576767,112.9,112.89,8.8642]
[1744330000361,0.06576767,112.9,112.88,8.92419907]
[1744330001165,0.06576767,112.9,112.89,8.8642]
[1744330004166,8.92916767,112.9,112.88,0.05959907]
[1744330004668,8.8642,112.89,112.83,737.9]
[1744330005162,2.2054,112.88,112.85,8.8669]
[1744330005358,13.3309,112.88,112.85,8.8669]
[1744330005560,13.3309,112.88,112.83,737.9]
[1744330005761,8.8658,112.87,112.83,737.9]
[1744330006063,8.93249585,112.87,112.84,0.06571427]
[1744330006466,8.93249585,112.87,112.84,8.93341427]
[1744330008756,0.06669585,112.87,112.85,8.8673]
[1744330009959,0.06669585,112.87,112.84,0.06571427]
[1744330010866,38.22279585,112.87,112.8,35.86]
[1744330011067,38.1561,112.87,112.8,35.86]
[1744330012071,8.93570881,112.85,112.82,8.93628033]
[1744330014769,0.06800881,112.85,112.82,0.06688033]
[1744330015371,8.8681,112.84,112.82,0.06688033]
[1744330016069,0.06800881,112.85,112.82,8.93648033]
[1744330016469,0.06800881,112.85,112.82,0.06688033]
[1744330016767,0.06800881,112.85,112.83,8.8685]
[1744330017177,0.06800881,112.85,112.82,0.06688033]
[1744330017376,0.06800881,112.85,112.82,35.94688033]
[1744330017677,0.06800881,112.85,112.83,8.8689]
[1744330017880,0.06800881,112.85,112.82,35.94688033]
[1744330018478,8.8685,112.84,112.82,35.94688033]
[1744330018879,8.8685,112.84,112.82,0.06688033]
[1744330019182,0.06800881,112.85,112.82,0.06688033]
[1744330019481,35.88,112.84,112.79,35.88]
[1744330019869,8.87,112.82,112.79,35.88]
[1744330020273,35.88,112.84,112.79,35.88]
[1744330020479,0.05815381,112.82,112.79,35.93758807]
[1744330020680,0.05815381,112.82,112.79,0.05758807]
[1744330020880,8.8712,112.8,112.79,0.05758807]
[1744330021179,35.88,112.81,112.71,738.6589653]
[1744330021578,35.88,112.81,112.73,8.8763]
[1744330021778,35.88,112.81,112.71,36.5789653]
[1744330021973,8.8756,112.75,112.71,45.4566653]
[1744330022677,0.06283535,112.74,112.71,45.4566653]
[1744330022981,8.93903535,112.74,112.71,45.4566653]
[1744330023183,35.94283535,112.74,112.71,36.5789653]
[1744330023386,35.94283535,112.74,112.71,15.5176653]
[1744330023575,35.94283535,112.74,112.71,15.1775653]
[1744330023884,8.8783,112.71,112.68,8.8802]
[1744330024183,35.88,112.74,112.67,35.88]
[1744330024387,0.06555411,112.71,112.67,35.88]
[1744330024885,8.94415411,112.71,112.67,44.761]
[1744330025380,0.06555411,112.71,112.68,8.8805]
[1744330025586,0.06555411,112.71,112.67,35.88]
[1744330026483,0.06555411,112.71,112.68,8.8801]
[1744330026678,0.06555411,112.71,112.67,35.88]
[1744330027381,0.06555411,112.71,112.68,4.6285]
[1744330027776,0.06555411,112.71,112.69,2.1472]
[1744330027977,0.06555411,112.71,112.68,2.3005]
[1744330028183,8.94425411,112.71,112.67,44.7612]
[1744330028479,0.06555411,112.71,112.67,35.88]
[1744330028676,8.94415411,112.71,112.67,44.761]